{"text_format":"1","workbook":"xlsx","n_sheets":2,"sheets":["Megger","Manual"],"not_rendered":{"charts":0,"images":0,"macros":1,"external_links":0,"defined_names":1,"comments":0,"pivot_tables":0},"unopened":[],"bounds":{"document_bytes":16777216,"sheet_cells":100000,"rows_first":2000,"rows_last":500,"rows_between":2000,"halvings":0,"cell_chars":16384,"cell_head_chars":4096},"cells_cut":0,"cells_raw":0,"read":"whole","date_system":"1900"}

{"sheet":"Megger","index":0,"n_rows":32,"n_cols":28,"rows_kept":32,"cut":false,"hidden":false,"merged":[[27,21,27,23],[29,8,29,10],[6,6,6,8],[6,17,6,19],[26,8,26,10],[27,8,27,10],[28,8,28,10],[2,6,2,24],[1,6,1,24],[9,9,9,11],[9,20,9,21],[25,8,25,10],[21,8,21,10],[22,8,22,10],[23,8,23,10],[25,15,25,16],[21,12,22,19],[8,13,8,17],[0,1,0,26],[31,0,31,1],[19,15,20,19],[31,25,31,28],[3,4,3,5],[4,4,4,5],[4,25,4,26],[6,13,6,14],[6,21,6,22],[24,8,24,10],[19,8,19,10],[20,8,20,10],[6,9,6,11],[8,9,8,11],[8,20,8,21],[16,6,16,10],[3,2,3,3],[4,2,4,3],[3,25,3,26],[3,27,3,28],[4,27,4,28]]}
[null,"Beregning på et varmelegeme - enkelt leder - der har overgang til skærm (beskyttelsesjord)"]
[null,null,null,null,null,null,"Varmelegeme med skærmkappe"]
[null,null,null,null,null,null,{"$f":"CONCATENATE(G13,J13,K13)","v":"Længde: 1000 cm"},null,null,null,null,null,null,null,null,null,null,null,null,null,null,null,null,null,null,"Skærm"]
[null,null,{"$f":"IF(J11=230,\"fase\",IF(J11=400,\"Fase\",\"Pos\"))","v":"fase"},null,"tråden",null,null,null,null,null,null,null,null,null,null,null,null,null,null,null,null,null,null,null,null,"tråden",null,{"$f":"IF(J11=230,\"Neutral\",IF(J11=400,\"Fase\",\"Neg\"))","v":"Neutral"}]
[null,null,{"$f":"CONCATENATE(J11,K11)","v":"230 Volt"},null,"Ende A",null,null,null,null,null,null,null,null,null,null,null,null,null,null,null,null,null,null,null,null,"Ende B",null,{"$f":"IF(J11=230,\"0\",IF(J11=400,C5,0))","v":"0"}]
[null,null,null,null,null,null,null,null,null,null,"a",null,null,null,null,null,"overgang til jord i X",null,null,null,"b",null,null,null,null,"Skærm"]
[null,null,null,null,null,null,"Målt fra ende A",null,null,{"$f":"+I20","v":4631.74},null,null,"Ω","til X",null,null,"Målt fra ende B",{"$f":"+I21","v":4621.16},null,null,"Ω","til X"]
[null,null,null,null,null,null,null,null,null,null,null,null,null,null,null,null,"overgangsmodstand X fra tråd til jord er ens målt fra begge ender A og B."]
[null,null,null,null,null,null,null,null,null,{"$f":"+I29","v":599.99999999999932},null,null,"cm",{"$f":"CONCATENATE(M26,S26,O26,P26)","v":"a er 200 cm længere end b"},null,null,null,null,null,null,{"$f":"+I30","v":400.0000000000008},null,"cm"]
[null,null,null,null,null,null,null,null,null,{"$f":"J9*Q17","v":31.739999999999966},null,null,"Ω",null,null,null,null,null,null,null,{"$f":"U9*Q17","v":21.160000000000043},null,"Ω"]
[null,"Det vi ved om varmelegemet:",null,null,null,null,"Spænding:",null,null,230," Volt","V","Spænding",null,"Spændingsfaldet i varmetråden er per cm:",null,null,null,null,{"$f":"J11/J13","v":0.23},"volt","I X punktet er spændingen:",null,null,null,{"$f":"T11*J9","v":137.99999999999986},"volt"]
[null,null,null,null,null,null,"Effekt:",null,null,1000,"Watt","W","Effekt",null,"Ved 30 mA skal fejlstrømsafbryderen slå fra. Det giver en overgangsmodstand R = V/I =",null,null,null,null,null,null,null,null,null,null,{"$f":"Z11/0.03","v":4599.9999999999955},"Ω"]
[null,null,null,null,null,null,"Længde: ",null,null,1000," cm","L","a + b"]
[null,"Antagelse:",null,null,null,null,"Skærmen er tilsluttet beskyttelsesjord og antages at have en Ohmsk modstand på nul."]
[null,"Det vi kan beregne:",null,null,null,null,"Strømmen i tråden:",null,null,null,null,"W = V * I ; I = W / V ; ",null,null,null,"I =",{"$f":"J12/J11","v":4.3478260869565215},"A"]
[null,null,null,null,null,null,"Modstanden i tråden:",null,null,null,null,"V = I * R; R = V / I ;",null,null,null,"R =",{"$f":"J11/Q15","v":52.900000000000006},"Ω"]
[null,null,null,null,null,null,"Modstanden i tråden/cm:",null,null,null,null,"R / L ;",null,null,null,"ρ =",{"$f":"Q16/J13","v":5.2900000000000003E-2},"Ω/cm"]
[null,"Vi skal nu foretage 2 målinger med et Ohmmeter eller en såkaldt \"Megger\", som kan måle høje og nøjagtige værdier. Også kaldet isolationstester. Værdierne er normalt i megaohm."]
[null,"http://da.wikipedia.org/wiki/Isolationstester  "]
[null,"1. måling fra ende A til skærm giver:",null,null,null,null,null,null,4631.74,null,null,"Ω",{"$f":"+I20/1000000","v":4.6317399999999996E-3},"MΩ",null,"Værdierne skal indsættes meget nøjagtige"]
[null,"2. måling fra ende B til skærm giver:",null,null,null,null,null,null,4621.16,null,null,"Ω",{"$f":"I21/1000000","v":4.62116E-3},"MΩ"]
[null,"Ende A giver:",null,null,"(a * Ω/cm + X) =",null,null,null,{"$f":"+I20","v":4631.74},null,null,"Ω","X er værdien af overgangsmodstanden mellem tråd og skærm.                  Denne udlignes ved at subtrahere de to ligninger."]
[null,"Ende B giver:",null,null,"(b * Ω/cm + X) = ",null,null,null,{"$f":"+I21","v":4621.16},null,null,"Ω"]
[null,"De to ligninger subtraheres:",null,null,null,null,"A - B =",null,{"$f":"+I22-I23","v":10.579999999999927},null,null,"Ω","Plus angiver A>B ; Minus angiver B>A. Værdien angiver forskellen mellem modstanden i A og B målt til punktet X."]
[null,"Beregnet modstand i tråden",null,null,null,null,"A + B = R",null,{"$f":"+Q16","v":52.900000000000006},null,null,"Ω"]
[null,"Omregnet til cm:",null,null,null,null,"a - b = (A-B)/ρ",null,{"$f":"I24/Q17","v":199.99999999999861},null,null,"cm",{"$f":"IF(N26=0,\"\",IF(N26>0,\"a er \",IF(N26<0,\"a er \")))","v":"a er "},{"$f":"ROUND(I26,1)","v":200},{"$f":"IF(N26=0,\"\",IF(N26>0,\" cm \",IF(N26<0,\" cm \")))","v":" cm "},{"$f":"IF(N26>0,P28,IF(N26=0,P30,IF(N26<0,P29)))","v":"længere end b"},null,{"$f":"ABS(N26)","v":200},{"$f":"IF(N26=0,\"\",IF(N26>0,R26,IF(N26<0,R26)))","v":200}]
[null,"Omregnet til cm:",null,null,null,null,"a + b = L",null,{"$f":"I25/Q17","v":1000.0000000000001},null,null,"cm"]
[null,"De to ligninger adderes:",null,null,null,null,"2a =",null,{"$f":"SUM(I26:I27)","v":1199.9999999999986},null,null,"cm",null,null,null,"længere end b"]
[null,"Længde a:",null,null,null,null,"a =",null,{"$f":"I28/2","v":599.99999999999932},null,null,"cm",null,null,null,"kortere end b"]
[null,"Længde b:",null,null,null,null,"b = L - a =",null,{"$f":"I27-I29","v":400.0000000000008},null,null,"cm",null,null,null,"a og b lige lange"]
[]
["walter",null,null,null,null,null,null,null,null,null,null,null,null,null,null,null,null,null,null,null,null,null,null,null,null,"Reg. No. 1274"]

{"sheet":"Manual","index":1,"n_rows":22,"n_cols":17,"rows_kept":22,"cut":false,"hidden":false,"merged":[[21,0,21,1],[21,16,21,19]]}
[null,"Manual:"]
[null,"I alle boliger bygget efter 1975 skal der være installeret en fejlstrømsafbryder HFI. H står for højfølsom, F for fejlstrøm og I bogstavsymbol for elektrisk strøm. Efter 1991 blev det et krav,"]
[null,"at der skal installeres en fejlstrømsafbryder HPFI. P står for pulserende. Begge typer slår fra ved en fejlstrøm på 30 mA vekselstrøm. HPFI fejlstrømsafbryderen slår også fra ved pulserende jævnstrømme."]
[null,"HPFI fejlstrømsafbryder er mere robuste for lynnedslag end HFI. Så oplever du, at køleskabet eller dybfryseren står af ved lynnedslag, skift til HPFI fejlstrømsafbryder."]
[]
[null,"I regnearket skal de 5 gule felter udfyldes. 3 værdier for dit varmelegeme: Nominel spænding i Volt, effekt i Watt og længden i cm."]
[null,"Elektrikeren skal måle 2 værdier med sin \"Megger\", og disse værdier indsættes i regnearket. Værdierne skal indsættes meget nøjagtigt. Derefter udregnes X punktet."]
[null,"Regnearket kan bruges såvel til fase og \"nul\" 230 volt, som til fase og fase 400 volt. Benyttes en anden spænding f. eks. 100 VDC kan regnearket også anvendes."]
[null,"Spændingsfaldet langs varmetråden falder med afstanden målt fra neutral (Neg) til fase (Pos) . Denne kan beregnes, så spændingen i X punktet kendes og dermed overgangsmodstanden ved 30 mA,"]
[null,"som er den strøm fejlstrømsafbryderen slår fra ved. I viste eksempel er spændingen i X punktet:",null,null,null,null,null,null,null,null,{"$f":"+Megger!Z11","v":137.99999999999986},{"$f":"+Megger!AA11","v":"volt"}]
[]
[null,"En hyppig fejl ved varmelegemer er, at der er kommet fugt (vand) ind i isolationen efter lang tids opbevaring uden brug. Det får fejlstrømsafbryderen til at slå fra."]
[null,"Disse fejl kan i nogen grad afhjælpes ved at frakoble beskyttelsesjord (gul/grøn) ledning, for så at opvarme isolationen (kvartssand)."]
[null,"Der er her tale om metalvarmelegemer til brug i f. eks. drivhuse eller på terrasser. Det er ikke noget man selv gør, for naturligvis skal man først undersøge med en megger, om der er en direkte kortslutning"]
[null,"mellem fase og metalskærm. Hvis dette er tilfældet vil sikringen i gruppen brænde over. En bedre løsning for at få fugten ud af isolationen er, at opvarme varmelegemet med en varmepistol."]
[]
[null,"Gulvvarmelegemer er noget helt andet, de grove fejl er, at der er slået søm eller skruer ned i varmelegemet, og så er en udskiftning af X punktet den eneste løsning. Gulvvarmemåtter findes som"]
[null,"2-ledere. I princippet er det blot, at ledningen - varmetråden - går frem og tilbage til samme udgangspunkt. I princippet kan regnearket bruges, men afstanden til X punktet er svært at bestemme."]
[]
[]
[]
["walter",null,null,null,null,null,null,null,null,null,null,null,null,null,null,null,"Reg. No. 1274"]